Cogmind - Beta 9.6 *** ADVENTURER MODE // 2020.05.18 @ 13:41:48 Player: core_nxt Result: Self-destructed Performance ------------- Evolutions (0) 0 Regions Visited (4) 800 Robots Destroyed (26) 130 Value Destroyed (304) 304 Prototype IDs (1) 20 Alien Tech Used (0) 0 Bonus (0) 0 TOTAL SCORE: 1254 Bonus ------- None Cogmind --------- Core Integrity 33/250 Matter 300/300 Energy 100/100 System Corruption 2% Temperature Cool (0) Movement Core (50) Location -9/Mines Parts ------- > --- POWER (1) -------- (None) > --- PROPULSION (2) --- (None) > --- UTILITY (2) ------ (None) > --- WEAPON (2) ------- (None) > --- INVENTORY (4) ---- Humpback Superbattery (2000) Light Armor Plating Peak State ------------ > --- POWER ------------ Light Ion Engine > --- PROPULSION ------- Aluminum Leg Aluminum Leg > --- UTILITY ---------- Superbattery > --- WEAPON ----------- EM Pulse Gun Light Assault Rifle > --- INVENTORY -------- Humpback Humpback [Rating: 15] Favorites ----------- Power Light Ion Engine Engine Light Ion Engine Propulsion Aluminum Leg Leg Aluminum Leg Utility Large Storage Unit Storage Large Storage Unit Protection Light Armor Plating Weapon EM Pulse Gun Energy Gun EM Pulse Gun Ballistic Gun Light Assault Rifle Launcher Grenade Launcher Build | -11 -10 -10 -10 -9 ------- Run | Scr Mat Min Exi Min Slots Evolved . | . . . . . Power . | . . . . . Propulsion . | . . . . . Utility . | . . . . . Weapon . | . . . . . Parts Attached 12 | . 4 2 2 4 Power 2 | . . 1 . 1 Engine 2 | . . 1 . 1 Core . | . . . . . Reactor . | . . . . . Propulsion 1 | . . . . 1 Treads . | . . . . . Leg 1 | . . . . 1 Wheel . | . . . . . Hover . | . . . . . Flight . | . . . . . Utility 6 | . 4 . 2 . Device . | . . . . . Storage 5 | . 3 . 2 . Processor . | . . . . . Hackware . | . . . . . Protection 1 | . 1 . . . Artifact . | . . . . . Weapon 3 | . . 1 . 2 Energy Gun 1 | . . . . 1 Energy Cannon . | . . . . . Ballistic Gun 1 | . . 1 . . Ballistic Cannon . | . . . . . Launcher 1 | . . . . 1 Special Weapon . | . . . . . Impact Weapon . | . . . . . Slashing Weapon . | . . . . . Piercing Weapon . | . . . . . Special Melee Weapon . | . . . . . Unidentified Prototypes 1 | . . . 1 . Parts Lost 11 | . . 2 . 9 Power 3 | . . 1 . 2 Propulsion 3 | . . . . 3 Utility . | . . . . . Weapon 5 | . . 1 . 4 Highest Loss Streak 5 | . . 1 . 5 Average Slot Usage (%) 91 | . 99 96 94 54 Engine 13 | . 14 13 14 10 Leg 25 | . 28 28 28 8 Storage 23 | . 24 28 23 14 Energy Gun 16 | . 28 16 14 7 Ballistic Gun 9 | . . 8 14 13 Naked Turns 1 | . . . . 1 Heaviest Build 88 | 13 41 41 86 88 Greatest Support 20 | 20 20 20 20 20 Greatest Overweight (x) 29 | . 2 2 4 29 Average Overweight (x) 1 | . . 1 1 8 Largest Inventory Capacity 24 | . 16 16 24 24 Average Capacity 17 | . 12 16 18 23 Most Carried 15 | . 9 8 15 10 Average Carried 8 | . 6 7 11 8 Final Capacity 24 | 6 16 16 24 4 Final Carried 10 | 6 7 8 10 4 Class Distribution -------------------- 74% | Mutant 25% | Hauler-Mutant Dominant Class ---------------- Mutant | -10/Materials Mutant | -10/Mines Mutant | -10/Exiles Hauler-Mutant | -9/Mines Resources | -11 -10 -10 -10 -9 ----------- Run | Scr Mat Min Exi Min Matter Collected 346 | 200 40 20 . 86 Remotely . | . . . . . Salvage Created 483 | . 193 219 33 38 Parts 33 | . 18 14 1 . Haulers Intercepted . | . . . . . Recyclers Shooed . | . . . . . Parts Field Recycled . | . . . . . Retrieved Matter . | . . . . . Parts Self-Destructed . | . . . . . Prevented . | . . . . . Kills | -11 -10 -10 -10 -9 ------- Run | Scr Mat Min Exi Min Combat Hostiles Destroyed 25 | . 8 8 1 8 Guns 21 | . 8 8 1 4 AOE 4 | . . . . 4 Classes Destroyed 4 | . 3 . . 1 Worker 1 | . 1 . . . Swarmer 12 | . 6 6 . . Grunt 5 | . 2 2 1 . Assembled 8 | . . . . 8 Best Kill Streak 7 | . 3 3 1 7 Combat Bots Only 7 | . 3 3 1 7 Max Kills in Single Turn 3 | . 2 1 1 3 Gunslinging . | . . . . . Exploded 3 | . . . . 3 Melee . | . . . . . Uniques/NPCs Destroyed . | . . . . . Combat | -11 -10 -10 -10 -9 -------- Run | Scr Mat Min Exi Min Damage Taken 1077 | . 131 258 . 688 Core 217 | . 23 46 . 148 Absorbed by Shields . | . . . . . Core Remaining (%) 100 | 100 . . . . Volleys Fired 57 | . 11 23 1 22 Largest 2 | . 2 2 2 2 Hottest 90 | . 90 90 60 60 Shots Fired 94 | . 22 35 2 35 Gun 91 | . 22 35 2 32 Cannon . | . . . . . Launcher 3 | . . . . 3 Special . | . . . . . Kinetic 27 | . . 7 1 19 Thermal 16 | . 11 5 . . Explosive 3 | . . . . 3 Electromagnetic 48 | . 11 23 1 13 Robot Hit Streak 25 | . 11 25 6 7 Robot Miss Streak 3 | . 1 1 . 3 Penetration Max . | . . . . . Secondary Targets 3 | . . 3 . . Max Gunslinging Chain 1 | . . 1 . . Shots Hit Robots 69 | . 17 30 1 21 Core Hits 42 | . 12 11 1 18 Critical Hits . | . . . . . Critical Kills . | . . . . . Critical Parts Destroyed . | . . . . . Melee Attacks . | . . . . . Impact . | . . . . . Slashing . | . . . . . Piercing . | . . . . . Sneak Attacks . | . . . . . Combat Hostiles . | . . . . . Follow-up Attacks . | . . . . . Damage Inflicted 1182 | . 216 349 15 602 Guns 709 | . 216 336 15 142 Cannons . | . . . . . Explosions 460 | . . . . 460 Melee . | . . . . . Ramming 13 | . . 13 . . Kinetic 114 | . . 46 . 68 Thermal 175 | . 112 63 . . Explosive 460 | . . . . 460 Electromagnetic 420 | . 104 227 15 74 Impact . | . . . . . Slashing . | . . . . . Piercing . | . . . . . Highest Corruption 2 | . . . . 2 Average Corruption 2 | . . . . 2 Corruption Purged . | . . . . . Effects 7 | . . . . 7 Message Errors 2 | . . . . 2 Heat Flow Errors 1 | . . . . 1 Energy Discharges 1 | . . . . 1 Data Loss (minor) 2 | . . . . 2 Targeting Errors 1 | . . . . 1 Overload Shots . | . . . . . Overflow Damage 78 | . . . . 78 Projectiles . | . . . . . Explosions 78 | . . . . 78 Melee . | . . . . . Knockbacks . | . . . . . Impact . | . . . . . Kinetic . | . . . . . Secondary . | . . . . . Self-Inflicted Damage 78 | . . . . 78 Shots 3 | . . . . 3 Rammed 1 | . . 1 . . Targets Rammed 2 | . . 2 . . Kicked 1 | . . 1 . . Crushed . | . . . . . Highest Temperature 225 | . 102 225 20 86 Average Temperature 60 | . 45 97 15 32 Received Heat Transfer 134 | . 30 84 . 20 Siege Activations . | . . . . . Robots Corrupted . | . . . . . Combat Hostiles . | . . . . . Parts Fried 1 | . . 1 . . Impact Corruptions . | . . . . . Robots Melted . | . . . . . Combat Hostiles . | . . . . . Parts Melted 1 | . 1 . . . Heat Transferred 518 | . 333 185 . . Parts Sabotaged . | . . . . . Parts Stolen . | . . . . . Parts Stripped . | . . . . . Power Chain Reactions . | . . . . . Missiles Intercepted . | . . . . . Alert | -11 -10 -10 -10 -9 ------- Run | Scr Mat Min Exi Min Peak Influence 207 | . 207 178 . . Average Influence 69 | . 84 86 . . Maximum Alert Level 1 | . 1 . . . Low Security (%) 97 | . 89 100 . 100 Level 1 2 | . 10 . . . Level 2 . | . . . . . Level 3 . | . . . . . Level 4 . | . . . . . Level 5 . | . . . . . High Security . | . . . . . Max Security . | . . . . . Squads Dispatched . | . . . . . Investigation . | . . . . . Extermination . | . . . . . Reinforcement . | . . . . . Assault . | . . . . . Garrison . | . . . . . Intercept . | . . . . . Construction Impeded . | . . . . . Haulers Reinforced . | . . . . . Stealth | -11 -10 -10 -10 -9 --------- Run | Scr Mat Min Exi Min Distress Signals . | . . . . . Communications Jammed . | . . . . . Distress Signals . | . . . . . Times Spotted 29 | . 11 9 . 9 Peak Tracking Total 7 | . 4 3 . 7 Tactical Retreats 3 | . 1 2 . . Traps | -11 -10 -10 -10 -9 ------- Run | Scr Mat Min Exi Min Traps Triggered 1 | . 1 . . . Indirectly . | . . . . . Trap Hack Attempts . | . . . . . Triggered . | . . . . . Disarmed . | . . . . . Reprogrammed . | . . . . . Reused . | . . . . . Traps Extracted . | . . . . . Installed . | . . . . . Triggered . | . . . . . Machines | -11 -10 -10 -10 -9 ---------- Run | Scr Mat Min Exi Min Machines Disabled . | . . . . . Max in Single Turn . | . . . . . Machines Sabotaged . | . . . . . Garrisons Compromised . | . . . . . Overloaded Fab Kills . | . . . . . Fab Network Shutdowns . | . . . . . Hacking | -11 -10 -10 -10 -9 --------- Run | Scr Mat Min Exi Min Machines Accessed 5 | . 2 . 3 . Terminals 2 | . 2 . . . Fabricators . | . . . . . Repair Stations . | . . . . . Recycling Units . | . . . . . Scanalyzers . | . . . . . Garrison Access . | . . . . . Total Hacks 27 | . 2 . 25 . Successful 26 | . 1 . 25 . Failed 1 | . 1 . . . Catastrophic 1 | . 1 . . . Database Lockouts . | . . . . . Manual 3 | . 2 . 1 . Terminals 2 | . 2 . . . Fabricators . | . . . . . Repair Stations . | . . . . . Recycling Units . | . . . . . Scanalyzers . | . . . . . Garrison Access . | . . . . . Terminal Hacks 26 | . 1 . 25 . Record 25 | . . . 25 . Branch Access Points 1 | . 1 . . . Fabricator Hacks . | . . . . . Repair Station Hacks . | . . . . . Recycling Unit Hacks . | . . . . . Scanalyzer . | . . . . . Garrison Access Hacks . | . . . . . Unauthorized Hacks . | . . . . . Terminals . | . . . . . Fabricators . | . . . . . Repair Stations . | . . . . . Recycling Units . | . . . . . Scanalyzers . | . . . . . Garrison Access . | . . . . . Data Cores Recovered . | . . . . . Used . | . . . . . Hacking Detections 1 | . 1 . . . Full Trace Events . | . . . . . Feedback Events . | . . . . . Feedback Blocked . | . . . . . Robot Schematics Acquired . | . . . . . Robots Built . | . . . . . Matter . | . . . . . Time . | . . . . . Total Robot Build Rating . | . . . . . Part Schematics Acquired . | . . . . . Parts Built . | . . . . . Matter . | . . . . . Time . | . . . . . Total Part Build Rating . | . . . . . Parts Repaired . | . . . . . Time . | . . . . . Parts Recycled . | . . . . . Recycled Matter . | . . . . . Retrieved Matter . | . . . . . Retrieved Components . | . . . . . Parts Scanalyzed . | . . . . . Part Schematics Acquired . | . . . . . Parts Damaged . | . . . . . Bothacking | -11 -10 -10 -10 -9 ------------ Run | Scr Mat Min Exi Min Used RIF Installer . | . . . . . Robots Hacked . | . . . . . Non-combat . | . . . . . Combat . | . . . . . Robot Hacks Applied . | . . . . . Relay Couplers Released . | . . . . . Robots Rewired 2 | . . . 2 . Allies Hacked . | . . . . . Hacks Repelled . | . . . . . Allies | -11 -10 -10 -10 -9 -------- Run | Scr Mat Min Exi Min Total Allies 2 | . . . 2 . Largest Group 2 | . . . 2 2 Highest-Rated Group 29 | . . . 29 29 Highest-Rated Ally 21 | . . . 21 21 Total Orders . | . . . . . Ally Attacks 1 | . . . . 1 Total Damage . | . . . . . Kills . | . . . . . Allies Corrupted . | . . . . . Allies Melted . | . . . . . Intel | -11 -10 -10 -10 -9 ------- Run | Scr Mat Min Exi Min Robot Analysis Total . | . . . . . Derelict Logs Recovered 1 | . . 1 . . Drone Launches . | . . . . . Drone Recoveries . | . . . . . Exploration | -11 -10 -10 -10 -9 ------------- Run | Scr Mat Min Exi Min Turns Passed 2228 | . 387 767 790 284 Spaces Moved 1165 | 1 230 447 441 46 Core 8 | . . . . 8 Treads . | . . . . . Legs 1157 | 1 230 447 441 38 Wheels . | . . . . . Hover . | . . . . . Flight . | . . . . . Fastest Speed 120 | 120 120 150 150 240 Average Speed 172 | 120 148 154 172 472 Slowest Speed 1500 | 120 180 180 240 1500 Overloaded Moves . | . . . . . Propulsion Burnouts . | . . . . . Robots Hopped . | . . . . . Cave-ins Triggered . | . . . . . Exploration Rate (%) 48 | 2 51 84 90 14 Regions Visited 4 Branch Regions 3 Pre-discovered Areas . | . . . . . Known Exits Taken 1 | . 1 . . . Unknown Exits Taken 3 | 1 . 1 1 . Scrap Searched . | . . . . . Spaces Dug . | . . . . . Terrain Destroyed 22 | . . . . 22 Melee . | . . . . . Projectile . | . . . . . AOE 22 | . . . . 22 Actions | -11 -10 -10 -10 -9 --------- Run | Scr Mat Min Exi Min Total 1296 | . 253 489 473 81 Wait 27 | . 5 15 . 7 Move 1161 | . 229 446 440 46 Hop . | . . . . . Pick Up 19 | . 1 1 17 . Fast Attach 7 | . 2 2 1 2 Attach 3 | . . . 1 2 Detach . | . . . . . Swap 2 | . 2 . . . Drop 13 | . 3 . 8 2 Fire 57 | . 11 23 1 22 Melee . | . . . . . Ram . | . . . . . Kick 2 | . . 2 . . Crush . | . . . . . Escape Stasis . | . . . . . Rewire 5 | . . . 5 . Trap . | . . . . . Miscellaneous . | . . . . . Route ------- -11/Scrapyard -10/Materials (discovered 3 exits: [*Mat x2] / *Min) -10/Mines (discovered 2 exits: [*Mat] / *Exi) -10/Exiles -9/Mines History --------- Turn | Location | Event 1 | -11/Scrapyard | Discovered new exit (range 0) 1 | -11/Scrapyard | Entered Materials 109 | -10/Materials | Discovered new exit (range 9) 150 | -10/Materials | Identified exit to Mines 218 | -10/Materials | Discovered new exit (range 5) 303 | -10/Materials | Build established: Mutant 388 | -10/Materials | Entered Mines 388 | -10/Mines | Discovered new exit (range 9) 429 | -10/Mines | Assisted by bots powering up and referring to "LRC-V3" 1148 | -10/Mines | Deemed a non-threat by the Exiles lab entrance 1148 | -10/Mines | Discovered new exit (range 5) 1155 | -10/Mines | Entered Exiles 1155 | -10/Exiles | Found Exiles lab destroyed 1659 | -10/Exiles | Opened EX-Vault 1665 | -10/Exiles | Found Prototype Storage 1665 | -10/Exiles | Identified Superbattery 1916 | -10/Exiles | Discovered new exit (range 14) 1945 | -10/Exiles | Entered Mines 1945 | -9/Mines | Accompanied by 2 allies 1946 | -9/Mines | Assembled infested the area 1964 | -9/Mines | Met a Derelict bent on vengeance 1970 | -9/Mines | Build established: Hauler-Mutant 2011 | -9/Mines | Destroyed 7 combat bots 2012 | -9/Mines | Lost 5 parts (1p2n2w) 2120 | -9/Mines | Core integrity fell below 50% 2229 | -9/Mines | Core integrity fell below 20% 2229 | -9/Mines | Self-destructed Last Messages --------------- 02197_ U-05 Engineer builds a Wall. 02198_ U-05 Engineer lays Concrete. 02206_ U-05 Engineer builds a Wall. 02210_ U-05 Engineer lays Concrete. 02211_ U-05 Engineer builds a Wall. 02216_ Lgt. Assault Rifle destroyed. 02216_ EM Pulse Gun destroyed. 02219_ U-05 Engineer lays Concrete. 02220_ The unstable cave ceiling collapses. 02220_ U-05 Engineer lays Concrete. 02222_ The unstable cave ceiling collapses. 02223_ U-05 Engineer lays Concrete. 02224_ The unstable cave ceiling collapses. 02224_ U-05 Engineer lays Concrete. 02228_ The unstable cave ceiling collapses. 02228_ U-05 Engineer lays Concrete. 02228_ Dropped Lrg. Storage Unit. 02228_ Dropped Humpback. 02228_ Ion Engine destroyed. 02228_ U-05 Engineer destroyed. Map ----- +----------------------------------------------------+ | ?????????????????????????????????????????????????? | | ?????????????????????????????????????????????????? | | ?????????????????????????????????????????????????? | | ?????????????????????????????????????????????????? | | ?????????????????????????????????????????????????? | | ?????????????????????????????????????????????????? | | ?????????????????????????????????????????????????? | | ?????????????????????????????????????????????????? | | ?????????????????????????????????????????????????? | | ?????????????????????????????????????????????????? | | ???????????????????????? ???????????????????????? | | ???????????????????????? r???????????????????????? | | ???????????????????????? ???????????????????????? | | ???????????????????????# ?????????????????"" "??? | | ???????????????????????# ????????????????""" ???? | | ????????????????????? ?#r ?????#########?? ???? | | ???????????????????? # ???#?# #? """ ???? | | ???????????????????? # #? ?# ## """ ???? | | ??????????????????# # ## #? ??# """ ???? | | ???????????????????? # ## ??# #????????? | | ?????????????????????###d!# ###### # ##???????? | | ????????????????????### = # ### ####????? | | ???????????##??????## = ## ### ###??? | | ???????????# ##